[Event "3rd FIDE WCCC Rapid U12 2019"]
[Site "Minsk"]
[Date "2019.08.17"]
[Round "8.2"]
[White "Strybuk, Artsiom I"]
[Black "Chyndygyr, Tamerlan"]
[Result "1-0"]
[ECO "A55"]
[WhiteElo "2200"]
[BlackElo "1984"]
[Annotator "ChessBase"]
[PlyCount "139"]
[EventDate "2019.08.16"]
[EventType "swiss"]
[EventCountry "BLR"]
[SourceTitle "playchess.com"]
[Source "ChessBase"]
[SourceQuality "1"]
[TimeControl "600+5"]

1. d4 {[%emt 0:00:00]} Nf6 {[%emt 0:00:00]} 2. c4 {[%emt 0:00:00]} d6 {[%emt 0:00:00]} 3. Nf3 {[%emt 0:00:00]} Nbd7 {[%emt 0:00:00]} 4. Nc3 {[%emt 0:00:00]} e5 {[%emt 0:00:00]} 5. e4 {[%emt 0:00:01]} Be7 {[%emt 0:00:01]} 6. Be2 {[%emt 0:00:01]} O-O {[%emt 0:00:02]} 7. O-O {[%emt 0:00:02]} c6 {[%emt 0:00:01]} 8. Qc2 {[%emt 0:00:09]} a5 {[%emt 0:00:01]} 9. Rd1 {[%emt 0:00:07]} Qc7 {[%emt 0:00:02]} 10. h3 {[%emt 0:00:28]} Re8 {[%emt 0:00:06]} 11. Be3 {[%emt 0:00:15]} Bf8 {[%emt 0:00:04]} 12. Bf1 {[%emt 0:00:16]} exd4 {[%emt 0:00:03]} 13. Bxd4 {[%emt 0:00:06]} Ne5 {[%emt 0:00:01]} 14. Nxe5 {[%emt 0:00:39]} dxe5 {[%emt 0:00:01]} 15. Be3 {[%emt 0:00:01]} Be6 {[%emt 0:00:07]} 16. Na4 {[%emt 0:00:16]} Nd7 {[%emt 0:00:30]} 17. Rac1 {[%emt 0:00:46]} Rad8 {[%emt 0:00:41]} 18. Be2 {[%emt 0:00:39]} Qb8 {[%emt 0:00:56]} 19. c5 {[%emt 0:00:34]} h6 {[%emt 0:00:26]} 20. Bc4 {[%emt 0:00:16]} Bxc4 {[%emt 0:00:53]} 21. Qxc4 {[%emt 0:00:01]} Nf6 {[%emt 0:00:01]} 22. f3 {[%emt 0:00:51]} Be7 {[%emt 0:01:24]} 23. Qc3 {[%emt 0:01:03]} Rxd1+ {[%emt 0:00:17]} 24. Rxd1 {[%emt 0:00:01]} Rd8 {[%emt 0:00:01]} 25. Rd2 {[%emt 0:01:04]} Rxd2 {[%emt 0:01:01]} 26. Qxd2 {[%emt 0:00:33]} Qd8 {[%emt 0:00:23]} 27. Kf2 {[%emt 0:00:32]} Kf8 {[%emt 0:00:09]} 28. Ke2 {[%emt 0:00:29]} Ke8 {[%emt 0:01:09]} 29. Qxd8+ {[%emt 0:00:03]} Bxd8 {[%emt 0:00:03]} 30. Kd3 {[%emt 0:00:04]} Nh5 {[%emt 0:00:41]} 31. b3 {[%emt 0:01:19]} Bg5 {[%emt 0:00:22]} 32. g4 {[%emt 0:01:24]} Bxe3 {[%emt 0:00:07]} 33. gxh5 {[%emt 0:00:01]} Bd4 {[%emt 0:00:11]} 34. Nb6 {[%emt 0:00:08]} Bxc5 {[%emt 0:00:03]} 35. Nc4 {[%emt 0:00:00]} Kd7 {[%emt 0:02:10]} 36. Nxe5+ {[%emt 0:00:03]} Ke6 {[%emt 0:00:02]} 37. Nc4 {[%emt 0:00:04]} b6 {[%emt 0:00:03]} 38. a4 {[%emt 0:00:13]} g6 {[%emt 0:00:20]} 39. hxg6 {[%emt 0:00:05]} fxg6 {[%emt 0:00:00]} 40. f4 {[%emt 0:00:01]} h5 {[%emt 0:00:04]} 41. Ke2 {[%emt 0:00:22]} Bd4 {[%emt 0:00:08]} 42. Kf3 {[%emt 0:00:04]} Bc5 {[%emt 0:00:22]} 43. Ne5 {[%emt 0:00:04]} g5 {[%emt 0:00:07]} 44. Nxc6 {[%emt 0:00:09]} gxf4 {[%emt 0:00:02]} 45. Kxf4 {[%emt 0:00:02]} h4 {[%emt 0:00:07]} 46. Na7 {[%emt 0:00:16]} Bd6+ {[%emt 0:00:11]} 47. Kf3 {[%emt 0:00:07]} Bc5 {[%emt 0:00:02]} 48. Nb5 {[%emt 0:00:02]} Ke5 {[%emt 0:00:02]} 49. Nc7 {[%emt 0:00:12]} Bd6 {[%emt 0:00:03]} 50. Nd5 {[%emt 0:00:04]} Bc5 {[%emt 0:00:02]} 51. Nf4 {[%emt 0:00:04]} Kf6 {[%emt 0:00:25]} 52. Nd3 {[%emt 0:00:05]} Be7 {[%emt 0:00:06]} 53. Kg4 {[%emt 0:00:02]} Ke6 {[%emt 0:00:01]} 54. Kf4 {[%emt 0:00:07]} Bd6+ {[%emt 0:00:05]} 55. e5 {[%emt 0:00:01]} Be7 {[%emt 0:00:09]} 56. Ke4 {[%emt 0:00:01]} Bg5 {[%emt 0:00:02]} 57. Nf4+ {[%emt 0:00:02]} Kd7 {[%emt 0:00:05]} 58. Nd3 {[%emt 0:00:16]} Ke6 {[%emt 0:00:05]} 59. Ne1 {[%emt 0:00:04]} Bd8 {[%emt 0:00:08]} 60. Nf3 {[%emt 0:00:01]} Be7 {[%emt 0:00:06]} 61. Nd4+ {[%emt 0:00:02]} Kd7 {[%emt 0:00:00]} 62. Kd5 {[%emt 0:00:03]} Bc5 {[%emt 0:00:03]} 63. Nf5 {[%emt 0:00:05]} Bf2 {[%emt 0:00:01]} 64. e6+ {[%emt 0:00:02]} Ke8 {[%emt 0:00:03]} 65. Kc6 {[%emt 0:00:06]} Kd8 {[%emt 0:00:07]} 66. e7+ {[%emt 0:00:02]} Ke8 {[%emt 0:00:01]} 67. Kd6 {[%emt 0:00:00]} Bc5+ {[%emt 0:00:14]} 68. Ke6 {[%emt 0:00:03]} Bxe7 {[%emt 0:00:03]} 69. Nxe7 {[%emt 0:00:01]} Kd8 {[%emt 0:00:01]} 70. Nd5 {[%emt 0:00:01]} 1-0

[Event "3rd FIDE WCCC Rapid U12 2019"]
[Site "Minsk"]
[Date "2019.08.17"]
[Round "8.3"]
[White "Saveljev, Ivan"]
[Black "Gavrilov, Maxim"]
[Result "1-0"]
[ECO "B51"]
[WhiteElo "2040"]
[BlackElo "1808"]
[Annotator "NA"]
[PlyCount "55"]
[EventDate "2019.08.16"]
[EventType "swiss"]
[EventCountry "BLR"]
[SourceTitle "playchess.com"]
[Source "ChessBase"]
[SourceQuality "1"]
[TimeControl "600+5"]

1. e4 {[%emt 0:00:00]} c5 {[%emt 0:00:00]} 2. Nf3 {[%emt 0:00:00]} d6 {[%emt 0:00:00]} 3. Bb5+ {[%emt 0:00:00]} Nc6 {[%emt 0:00:00]} 4. O-O {[%emt 0:00:03]} Bd7 {[%emt 0:00:12]} 5. Re1 {[%emt 0:00:14]} g6 {[%emt 0:00:09]} 6. c3 {[%emt 0:00:02]} Bg7 {[%emt 0:00:05]} 7. d4 {[%emt 0:00:51]} cxd4 {[%emt 0:00:11]} 8. cxd4 {[%emt 0:00:01]} e6 {[%emt 0:00:37]} 9. Nc3 {[%emt 0:00:44]} Nge7 {[%emt 0:00:11]} 10. d5 {[%emt 0:01:27]} exd5 {[%emt 0:02:44]} 11. exd5 {[%emt 0:01:54]} Ne5 {[%emt 0:00:06]} 12. Bf4 {[%emt 0:00:26]} Bxb5 {[%emt 0:02:44]} 13. Nxb5 {[%emt 0:00:16]} O-O {[%emt 0:00:43]} 14. Nxe5 {[%emt 0:01:39]} dxe5 {[%emt 0:00:10]} 15. Bxe5 {[%emt 0:00:07]} Nxd5 {[%emt 0:02:03]} 16. Bd6 {[%emt 0:00:25]} Bxb2 {[%emt 0:01:12]} 17. Rb1 {[%emt 0:02:55]} Nc3 18. Nxc3 {[%emt 0:00:01]} Bxc3 {[%emt 0:00:07]} 19. Re3 {[%emt 0:00:01]} Rc8 {[%emt 0:00:13]} 20. Bxf8 {[%emt 0:00:03]} Qxf8 {[%emt 0:00:01]} 21. Rc1 {[%emt 0:00:07]} Bb2 {[%emt 0:00:06]} 22. Rxc8 {[%emt 0:00:03]} Qxc8 {[%emt 0:00:01]} 23. g3 {[%emt 0:00:07]} Kg7 {[%emt 0:00:05]} 24. Qb3 {[%emt 0:00:19]} Bf6 {[%emt 0:00:04]} 25. Qd5 {[%emt 0:00:07]} b6 {[%emt 0:00:11]} 26. Kg2 {[%emt 0:00:03]} Qc2 {[%emt 0:00:07]} 27. Rf3 {[%emt 0:00:10]} Qxa2 {[%emt 0:00:05]} 28. Qxa2 {[%emt 0:00:02]} 1-0

[Event "3rd FIDE WCCC Rapid U12 2019"]
[Site "Minsk"]
[Date "2019.08.17"]
[Round "8.4"]
[White "Khubukshanov, Erdem"]
[Black "Siniukovich, Ivan"]
[Result "1-0"]
[ECO "C00"]
[WhiteElo "2257"]
[BlackElo "1685"]
[Annotator "ChessBase"]
[PlyCount "99"]
[EventDate "2019.08.16"]
[EventType "swiss"]
[EventCountry "BLR"]
[SourceTitle "playchess.com"]
[Source "ChessBase"]
[SourceQuality "1"]
[TimeControl "600+5"]

1. e4 {[%emt 0:00:00]} e6 {[%emt 0:00:00]} 2. d4 {[%emt 0:00:00]} d5 {[%emt 0:00:00]} 3. Bd3 {[%emt 0:00:00]} dxe4 {[%emt 0:00:04]} 4. Bxe4 {[%emt 0:00:00]} Nf6 {[%emt 0:00:02]} 5. Bf3 {[%emt 0:00:01]} c6 {[%emt 0:00:12]} 6. Ne2 {[%emt 0:00:06]} Bd6 7. O-O {[%emt 0:00:03]} O-O {[%emt 0:00:03]} 8. Nbc3 {[%emt 0:00:01]} Nbd7 {[%emt 0:00:11]} 9. Re1 {[%emt 0:00:03]} e5 {[%emt 0:00:31]} 10. g3 {[%emt 0:00:06]} exd4 {[%emt 0:00:28]} 11. Nxd4 {[%emt 0:00:03]} Ne5 {[%emt 0:00:07]} 12. Bg2 {[%emt 0:00:13]} Bg4 {[%emt 0:00:40]} 13. Qd2 {[%emt 0:00:03]} Re8 {[%emt 0:00:32]} 14. h3 {[%emt 0:01:10]} Bh5 {[%emt 0:00:37]} 15. Nf5 {[%emt 0:00:31]} Bc5 {[%emt 0:00:41]} 16. g4 {[%emt 0:01:18]} Bg6 {[%emt 0:00:38]} 17. Qxd8 {[%emt 0:00:03]} Raxd8 {[%emt 0:00:06]} 18. Be3 {[%emt 0:00:01]} Bxf5 {[%emt 0:00:54]} 19. Bxc5 {[%emt 0:00:03]} Bxc2 {[%emt 0:00:14]} 20. Bxa7 {[%emt 0:00:13]} Nd3 {[%emt 0:02:20]} 21. Rxe8+ {[%emt 0:00:06]} Rxe8 {[%emt 0:00:01]} 22. b3 {[%emt 0:00:11]} Nf4 {[%emt 0:02:02]} 23. Bf1 {[%emt 0:01:16]} N6d5 {[%emt 0:00:32]} 24. Nxd5 {[%emt 0:00:13]} Nxd5 {[%emt 0:00:01]} 25. Bd4 {[%emt 0:00:40]} f6 {[%emt 0:00:23]} 26. Rc1 {[%emt 0:00:13]} Bg6 {[%emt 0:00:01]} 27. a4 {[%emt 0:00:43]} Kf7 {[%emt 0:00:27]} 28. Bc4 {[%emt 0:00:10]} Be4 {[%emt 0:00:15]} 29. a5 {[%emt 0:00:14]} Ra8 {[%emt 0:00:08]} 30. Re1 {[%emt 0:00:52]} Bg6 {[%emt 0:00:09]} 31. f4 {[%emt 0:00:11]} h5 {[%emt 0:00:08]} 32. f5 {[%emt 0:00:03]} Bh7 {[%emt 0:00:01]} 33. b4 {[%emt 0:00:31]} hxg4 34. hxg4 {[%emt 0:00:02]} g6 {[%emt 0:00:04]} 35. Re6 {[%emt 0:00:26]} Kg7 {[%emt 0:00:12]} 36. Bxd5 {[%emt 0:00:34]} cxd5 {[%emt 0:00:01]} 37. Re7+ {[%emt 0:00:00]} Kh6 {[%emt 0:00:01]} 38. Bxf6 {[%emt 0:00:06]} gxf5 {[%emt 0:00:03]} 39. g5+ {[%emt 0:00:01]} Kg6 {[%emt 0:00:06]} 40. Rg7+ {[%emt 0:00:01]} Kh5 {[%emt 0:00:01]} 41. Rxh7+ {[%emt 0:00:01]} Kg4 {[%emt 0:00:00]} 42. g6 {[%emt 0:00:03]} Kg3 {[%emt 0:00:07]} 43. Be5+ {[%emt 0:00:04]} Kf3 {[%emt 0:00:03]} 44. g7 {[%emt 0:00:03]} Re8 {[%emt 0:00:13]} 45. Rh8 {[%emt 0:00:06]} Rxe5 {[%emt 0:00:02]} 46. g8=Q {[%emt 0:00:04]} Re1+ {[%emt 0:00:02]} 47. Kh2 {[%emt 0:00:02]} Re2+ {[%emt 0:00:04]} 48. Kh3 {[%emt 0:00:02]} f4 {[%emt 0:00:06]} 49. Qxd5+ {[%emt 0:00:03]} Kf2 {[%emt 0:00:01]} 50. Kg4 {[%emt 0:00:09]} 1-0

[Event "3rd FIDE WCCC Rapid U12 2019"]
[Site "Minsk"]
[Date "2019.08.17"]
[Round "8.5"]
[White "Israfilov, Ali"]
[Black "Abdullayev, Ayat"]
[Result "1/2-1/2"]
[ECO "E91"]
[WhiteElo "1857"]
[BlackElo "1537"]
[Annotator "NA"]
[PlyCount "152"]
[EventDate "2019.08.16"]
[EventType "swiss"]
[EventCountry "BLR"]
[SourceTitle "playchess.com"]
[Source "ChessBase"]
[SourceQuality "1"]
[TimeControl "600+5"]

1. d4 {[%emt 0:00:00]} Nf6 {[%emt 0:00:00]} 2. c4 {[%emt 0:00:00]} g6 {[%emt 0:00:00]} 3. Nc3 {[%emt 0:00:00]} Bg7 {[%emt 0:00:00]} 4. e4 {[%emt 0:00:00]} d6 {[%emt 0:00:00]} 5. Nf3 {[%emt 0:00:01]} O-O {[%emt 0:00:03]} 6. Be2 {[%emt 0:00:01]} Na6 {[%emt 0:00:02]} 7. O-O {[%emt 0:00:03]} e5 {[%emt 0:00:01]} 8. Re1 {[%emt 0:00:17]} Bg4 {[%emt 0:00:11]} 9. d5 {[%emt 0:00:50]} Nc5 {[%emt 0:00:02]} 10. h3 {[%emt 0:00:02]} Bd7 {[%emt 0:00:07]} 11. Bf1 {[%emt 0:00:10]} a5 {[%emt 0:00:02]} 12. b3 {[%emt 0:00:06]} Ne8 {[%emt 0:00:13]} 13. Be3 {[%emt 0:00:11]} b6 {[%emt 0:00:09]} 14. a3 {[%emt 0:00:03]} f5 {[%emt 0:00:04]} 15. b4 {[%emt 0:00:24]} Nxe4 {[%emt 0:00:08]} 16. Nxe4 {[%emt 0:00:11]} fxe4 {[%emt 0:00:02]} 17. Nd2 {[%emt 0:00:26]} Nf6 {[%emt 0:00:11]} 18. Bg5 {[%emt 0:00:00]} axb4 {[%emt 0:00:54]} 19. axb4 {[%emt 0:00:02]} Rxa1 {[%emt 0:00:04]} 20. Qxa1 {[%emt 0:00:01]} Bf5 {[%emt 0:00:11]} 21. g4 {[%emt 0:00:44]} Bd7 {[%emt 0:00:30]} 22. Nxe4 {[%emt 0:00:02]} Qc8 {[%emt 0:01:31]} 23. Qd1 {[%emt 0:00:24]} Nxe4 {[%emt 0:00:17]} 24. Rxe4 {[%emt 0:00:01]} Qe8 {[%emt 0:00:10]} 25. Bg2 {[%emt 0:00:07]} Bf6 {[%emt 0:00:22]} 26. Bh6 {[%emt 0:00:18]} Bg7 {[%emt 0:00:01]} 27. Bg5 {[%emt 0:00:00]} Bf6 {[%emt 0:00:01]} 28. Be3 {[%emt 0:00:41]} Bf5 {[%emt 0:00:38]} 29. gxf5 {[%emt 0:00:28]} gxf5 {[%emt 0:00:02]} 30. Bh6 {[%emt 0:00:36]} fxe4 {[%emt 0:00:16]} 31. Qg4+ {[%emt 0:00:01]} Qg6 {[%emt 0:00:04]} 32. Qe6+ {[%emt 0:00:20]} Qf7 {[%emt 0:00:40]} 33. Bxf8 {[%emt 0:00:17]} Kxf8 {[%emt 0:00:19]} 34. Qc8+ {[%emt 0:00:23]} Kg7 {[%emt 0:00:13]} 35. Bxe4 {[%emt 0:00:03]} Bg5 {[%emt 0:00:32]} 36. Qg4 {[%emt 0:00:14]} Qf4 {[%emt 0:00:06]} 37. Qd7+ {[%emt 0:00:03]} Qf7 {[%emt 0:00:01]} 38. Qxf7+ {[%emt 0:00:04]} Kxf7 39. Bxh7 {[%emt 0:00:01]} Bd2 {[%emt 0:00:06]} 40. b5 {[%emt 0:00:00]} Kf6 {[%emt 0:00:06]} 41. Kg2 {[%emt 0:00:02]} Kg5 {[%emt 0:00:09]} 42. Kg3 {[%emt 0:00:08]} Bf4+ {[%emt 0:00:01]} 43. Kf3 {[%emt 0:00:00]} Kf6 {[%emt 0:00:07]} 44. Kg4 {[%emt 0:00:02]} Bh6 {[%emt 0:00:06]} 45. Be4 {[%emt 0:00:02]} Bf4 {[%emt 0:00:01]} 46. h4 {[%emt 0:00:01]} Bd2 {[%emt 0:00:08]} 47. Kh5 {[%emt 0:00:32]} Bf4 {[%emt 0:00:07]} 48. Kg4 {[%emt 0:00:32]} Bd2 {[%emt 0:00:01]} 49. Bf5 {[%emt 0:00:06]} Bf4 {[%emt 0:00:02]} 50. Be6 {[%emt 0:00:01]} Bd2 {[%emt 0:00:03]} 51. Kh5 {[%emt 0:00:38]} Bf4 {[%emt 0:00:01]} 52. Kg4 {[%emt 0:00:02]} Bd2 {[%emt 0:00:01]} 53. Kh5 {[%emt 0:00:00]} Bf4 {[%emt 0:00:01]} 54. Kg4 {[%emt 0:00:01]} Bd2 {[%emt 0:00:01]} 55. Kh5 {[%emt 0:00:02]} Bf4 {[%emt 0:00:01]} 56. f3 {[%emt 0:00:06]} Bd2 {[%emt 0:00:01]} 57. Kg4 {[%emt 0:00:48]} Bf4 {[%emt 0:00:01]} 58. Kh3 {[%emt 0:00:01]} Bd2 {[%emt 0:00:03]} 59. Kg2 {[%emt 0:00:02]} Bf4 {[%emt 0:00:22]} 60. Kf1 {[%emt 0:00:01]} Bg3 {[%emt 0:00:03]} 61. h5 Bf4 62. Ke2 {[%emt 0:00:04]} Bh6 {[%emt 0:00:03]} 63. Kd3 {[%emt 0:00:02]} Bf4 {[%emt 0:00:01]} 64. Ke4 {[%emt 0:00:59]} Bd2 {[%emt 0:00:03]} 65. Bg4 {[%emt 0:00:02]} Bh6 {[%emt 0:00:02]} 66. Bh3 {[%emt 0:00:03]} Bf4 {[%emt 0:00:02]} 67. Bf1 {[%emt 0:00:04]} Bh6 {[%emt 0:00:01]} 68. Bd3 {[%emt 0:00:01]} Bf4 {[%emt 0:00:01]} 69. Bc2 {[%emt 0:00:01]} Bh6 70. Ba4 Bf4 {[%emt 0:00:03]} 71. Kd3 {[%emt 0:00:04]} Bh6 {[%emt 0:00:01]} 72. Ke4 {[%emt 0:00:25]} Bd2 {[%emt 0:00:03]} 73. Bc2 {[%emt 0:00:06]} Bh6 {[%emt 0:00:05]} 74. Kd3 {[%emt 0:00:26]} Bf4 {[%emt 0:00:01]} 75. Kc3 {[%emt 0:00:01]} Bh6 {[%emt 0:00:05]} 76. Bg6 {[%emt 0:00:02]} Bf4 {[%emt 0:00:02]} 1/2-1/2

[Event "3rd FIDE WCCC Rapid U12 2019"]
[Site "Minsk"]
[Date "2019.08.17"]
[Round "8.6"]
[White "Hoang, Minh Hieu"]
[Black "Ponomarev, Vsevolod"]
[Result "1-0"]
[ECO "D52"]
[WhiteElo "1848"]
[BlackElo "1980"]
[Annotator "NA"]
[PlyCount "115"]
[EventDate "2019.08.16"]
[EventType "swiss"]
[EventCountry "BLR"]
[SourceTitle "playchess.com"]
[Source "ChessBase"]
[SourceQuality "1"]
[TimeControl "600+5"]

1. d4 {[%emt 0:00:00]} d5 {[%emt 0:00:00]} 2. c4 {[%emt 0:00:00]} e6 {[%emt 0:00:00]} 3. Nc3 {[%emt 0:00:00]} Nf6 {[%emt 0:00:00]} 4. Bg5 {[%emt 0:00:02]} Nbd7 {[%emt 0:00:02]} 5. e3 {[%emt 0:00:01]} c6 {[%emt 0:00:01]} 6. Nf3 {[%emt 0:00:02]} Qa5 {[%emt 0:00:01]} 7. Bxf6 {[%emt 0:00:03]} Nxf6 {[%emt 0:00:02]} 8. Nd2 {[%emt 0:00:02]} dxc4 {[%emt 0:00:07]} 9. Nxc4 {[%emt 0:00:01]} Qc7 {[%emt 0:00:01]} 10. Be2 {[%emt 0:00:02]} Be7 {[%emt 0:00:03]} 11. O-O {[%emt 0:00:02]} O-O {[%emt 0:00:02]} 12. Rc1 {[%emt 0:00:03]} Nd5 {[%emt 0:00:15]} 13. e4 {[%emt 0:00:09]} Nf4 {[%emt 0:00:17]} 14. Bf3 {[%emt 0:00:01]} Rd8 {[%emt 0:00:08]} 15. g3 {[%emt 0:00:10]} Nh3+ {[%emt 0:00:37]} 16. Kh1 {[%emt 0:00:13]} f6 {[%emt 0:00:50]} 17. Bg2 {[%emt 0:00:09]} Ng5 {[%emt 0:00:01]} 18. f4 {[%emt 0:00:11]} Nf7 {[%emt 0:00:01]} 19. Qd3 {[%emt 0:00:07]} b5 {[%emt 0:00:37]} 20. Ne3 {[%emt 0:00:16]} Qb6 {[%emt 0:00:01]} 21. Rfd1 {[%emt 0:00:09]} Bb7 {[%emt 0:00:14]} 22. a3 {[%emt 0:01:08]} a5 {[%emt 0:00:15]} 23. Nc2 {[%emt 0:00:18]} b4 {[%emt 0:01:04]} 24. Na4 Qa6 {[%emt 0:01:20]} 25. Qxa6 {[%emt 0:01:04]} Bxa6 {[%emt 0:00:01]} 26. axb4 {[%emt 0:00:39]} axb4 {[%emt 0:00:04]} 27. Nc5 {[%emt 0:00:01]} Bxc5 {[%emt 0:00:55]} 28. dxc5 {[%emt 0:00:01]} b3 {[%emt 0:01:03]} 29. Nd4 {[%emt 0:00:04]} Bb7 {[%emt 0:00:44]} 30. Nxb3 {[%emt 0:00:31]} Rxd1+ {[%emt 0:00:40]} 31. Rxd1 {[%emt 0:00:01]} Ra2 {[%emt 0:00:01]} 32. Rb1 {[%emt 0:00:02]} e5 {[%emt 0:00:11]} 33. f5 {[%emt 0:00:27]} Ba6 {[%emt 0:00:08]} 34. Nc1 {[%emt 0:00:02]} Ra4 {[%emt 0:00:14]} 35. b4 {[%emt 0:00:02]} g6 {[%emt 0:00:24]} 36. fxg6 {[%emt 0:00:15]} hxg6 {[%emt 0:00:01]} 37. h4 {[%emt 0:00:01]} Bc4 {[%emt 0:00:08]} 38. Bf3 {[%emt 0:00:10]} Ra3 {[%emt 0:00:46]} 39. Kg2 {[%emt 0:00:03]} Rc3 {[%emt 0:00:10]} 40. Ne2 {[%emt 0:00:29]} Rc2 {[%emt 0:00:11]} 41. Kf2 {[%emt 0:00:01]} Bd3 {[%emt 0:00:21]} 42. Rd1 {[%emt 0:00:18]} Bb5 {[%emt 0:00:09]} 43. Rb1 {[%emt 0:00:05]} Bd3 {[%emt 0:00:05]} 44. Rb3 {[%emt 0:00:06]} Bb5 {[%emt 0:00:10]} 45. Ke3 {[%emt 0:00:03]} Kf8 {[%emt 0:00:38]} 46. Nc3 {[%emt 0:00:52]} Bc4 {[%emt 0:00:01]} 47. Ra3 {[%emt 0:00:01]} Rb2 {[%emt 0:00:02]} 48. Ra8+ {[%emt 0:00:01]} Ke7 {[%emt 0:00:13]} 49. Ra7+ {[%emt 0:00:01]} Ke8 {[%emt 0:00:05]} 50. Bg4 {[%emt 0:00:04]} Rxb4 {[%emt 0:00:30]} 51. Bd7+ {[%emt 0:00:05]} Kd8 {[%emt 0:00:02]} 52. Bxc6 {[%emt 0:00:03]} Rb3 {[%emt 0:00:07]} 53. Kd2 {[%emt 0:00:00]} Rb2+ {[%emt 0:00:00]} 54. Kc1 {[%emt 0:00:01]} Rg2 {[%emt 0:00:12]} 55. Nd5 {[%emt 0:00:02]} Bxd5 {[%emt 0:00:09]} 56. exd5 {[%emt 0:00:05]} Nh6 {[%emt 0:00:02]} 57. d6 {[%emt 0:00:06]} Rg1+ {[%emt 0:00:01]} 58. Kc2 {[%emt 0:00:01]} 1-0

[Event "3rd FIDE WCCC Rapid U12 2019"]
[Site "Minsk"]
[Date "2019.08.17"]
[Round "9.1"]
[White "Cherniaiev, Tykhon"]
[Black "Saveljev, Ivan"]
[Result "1/2-1/2"]
[ECO "B24"]
[WhiteElo "2112"]
[BlackElo "2040"]
[Annotator "ChessBase"]
[PlyCount "62"]
[EventDate "2019.08.16"]
[EventType "swiss"]
[EventCountry "BLR"]
[SourceTitle "playchess.com"]
[Source "ChessBase"]
[SourceQuality "1"]
[TimeControl "600+5"]

1. e4 {[%emt 0:00:00]} c5 {[%emt 0:00:00]} 2. Nc3 {[%emt 0:00:00]} Nc6 {[%emt 0:00:00]} 3. Bb5 {[%emt 0:00:00]} g6 {[%emt 0:00:05]} 4. Bxc6 {[%emt 0:00:04]} dxc6 {[%emt 0:00:07]} 5. Nge2 {[%emt 0:00:08]} Bg7 {[%emt 0:00:02]} 6. d3 {[%emt 0:00:02]} Nf6 {[%emt 0:00:18]} 7. O-O {[%emt 0:00:03]} O-O {[%emt 0:00:19]} 8. h3 {[%emt 0:00:03]} Ne8 {[%emt 0:01:23]} 9. Be3 {[%emt 0:00:11]} b6 {[%emt 0:00:06]} 10. Qd2 {[%emt 0:00:03]} Nc7 {[%emt 0:00:22]} 11. Bh6 {[%emt 0:00:04]} f5 {[%emt 0:01:13]} 12. Bxg7 {[%emt 0:01:08]} Kxg7 {[%emt 0:00:04]} 13. Rad1 {[%emt 0:00:03]} e5 {[%emt 0:02:03]} 14. f4 {[%emt 0:00:11]} exf4 {[%emt 0:00:42]} 15. Qxf4 {[%emt 0:00:12]} Ne6 {[%emt 0:00:42]} 16. Qg3 {[%emt 0:00:32]} Nd4 {[%emt 0:00:42]} 17. Nf4 {[%emt 0:00:36]} Bd7 {[%emt 0:00:37]} 18. Rf2 {[%emt 0:00:13]} Kh8 {[%emt 0:00:31]} 19. Re1 {[%emt 0:00:41]} g5 {[%emt 0:00:29]} 20. Nh5 {[%emt 0:01:38]} f4 {[%emt 0:00:05]} 21. Qh2 {[%emt 0:00:08]} Qe8 {[%emt 0:00:10]} 22. g4 {[%emt 0:00:02]} fxg3 {[%emt 0:01:16]} 23. Rxf8+ {[%emt 0:00:02]} Qxf8 {[%emt 0:00:01]} 24. Qxg3 {[%emt 0:00:01]} Nf3+ {[%emt 0:00:34]} 25. Kh1 {[%emt 0:00:01]} Nxe1 {[%emt 0:00:02]} 26. Qe5+ {[%emt 0:00:03]} Kg8 {[%emt 0:00:01]} 27. Qxg5+ {[%emt 0:00:55]} Kf7 {[%emt 0:00:03]} 28. Qf6+ {[%emt 0:00:24]} Kg8 {[%emt 0:00:02]} 29. Qg5+ {[%emt 0:00:09]} Kf7 {[%emt 0:00:00]} 30. Qf6+ {[%emt 0:00:19]} Kg8 {[%emt 0:00:01]} 31. Qg5+ {[%emt 0:00:02]} Kf7 {[%emt 0:00:00]} 1/2-1/2

[Event "3rd FIDE WCCC Rapid U12 2019"]
[Site "Minsk"]
[Date "2019.08.17"]
[Round "9.2"]
[White "Strybuk, Artsiom I"]
[Black "Pidluznij, Gleb"]
[Result "1/2-1/2"]
[ECO "D70"]
[WhiteElo "2200"]
[BlackElo "1947"]
[Annotator "ChessBase"]
[PlyCount "105"]
[EventDate "2019.08.16"]
[EventType "swiss"]
[EventCountry "BLR"]
[SourceTitle "playchess.com"]
[Source "ChessBase"]
[SourceQuality "1"]
[TimeControl "600+5"]

1. d4 {[%emt 0:00:00]} Nf6 {[%emt 0:00:00]} 2. c4 {[%emt 0:00:00]} g6 {[%emt 0:00:00]} 3. Nf3 {[%emt 0:00:00]} Bg7 {[%emt 0:00:01]} 4. g3 {[%emt 0:00:00]} O-O {[%emt 0:00:02]} 5. Bg2 {[%emt 0:00:01]} c5 {[%emt 0:00:03]} 6. d5 {[%emt 0:00:17]} d6 {[%emt 0:00:01]} 7. O-O {[%emt 0:00:03]} b5 {[%emt 0:00:33]} 8. cxb5 {[%emt 0:00:09]} a6 {[%emt 0:00:01]} 9. bxa6 {[%emt 0:00:04]} Bf5 {[%emt 0:00:01]} 10. Nc3 {[%emt 0:00:24]} Ne4 {[%emt 0:00:02]} 11. Nxe4 {[%emt 0:01:12]} Bxe4 {[%emt 0:00:01]} 12. Nd2 {[%emt 0:00:01]} Bxg2 13. Kxg2 {[%emt 0:00:01]} Nxa6 {[%emt 0:00:28]} 14. Nc4 {[%emt 0:00:19]} Rb8 {[%emt 0:00:27]} 15. Rb1 {[%emt 0:00:57]} Qd7 {[%emt 0:00:11]} 16. b3 {[%emt 0:00:57]} Nb4 {[%emt 0:01:42]} 17. a3 {[%emt 0:01:44]} Qf5 {[%emt 0:01:06]} 18. Nd2 {[%emt 0:00:14]} Na6 {[%emt 0:01:02]} 19. e4 {[%emt 0:00:07]} Qd7 {[%emt 0:00:02]} 20. Qc2 {[%emt 0:00:14]} Rb7 {[%emt 0:00:16]} 21. Bb2 {[%emt 0:00:16]} Rfb8 {[%emt 0:00:14]} 22. Bxg7 {[%emt 0:00:02]} Kxg7 {[%emt 0:00:01]} 23. Qc3+ {[%emt 0:00:17]} Kg8 {[%emt 0:00:06]} 24. h4 {[%emt 0:00:15]} h5 {[%emt 0:00:09]} 25. Rfe1 {[%emt 0:00:16]} Nc7 {[%emt 0:00:05]} 26. a4 {[%emt 0:00:14]} Rb4 {[%emt 0:00:10]} 27. Qc2 {[%emt 0:00:22]} Qe8 {[%emt 0:00:51]} 28. Rbd1 {[%emt 0:00:08]} Qf8 {[%emt 0:00:11]} 29. Re3 {[%emt 0:00:16]} Qg7 {[%emt 0:00:05]} 30. Nc4 {[%emt 0:00:21]} Qf8 {[%emt 0:01:22]} 31. e5 {[%emt 0:00:09]} R4b7 {[%emt 0:00:17]} 32. e6 {[%emt 0:00:44]} f5 {[%emt 0:00:12]} 33. Rc3 {[%emt 0:00:31]} Na6 {[%emt 0:00:37]} 34. Na5 {[%emt 0:00:47]} Rb6 {[%emt 0:00:21]} 35. Nc6 {[%emt 0:00:02]} Nb4 {[%emt 0:00:37]} 36. Nxb4 {[%emt 0:00:02]} Rxb4 {[%emt 0:00:01]} 37. Rdd3 {[%emt 0:00:31]} Qf6 {[%emt 0:01:00]} 38. Rc4 {[%emt 0:00:25]} R4b6 {[%emt 0:00:05]} 39. a5 {[%emt 0:00:03]} Rb5 {[%emt 0:00:11]} 40. Ra4 {[%emt 0:00:04]} Ra8 {[%emt 0:00:14]} 41. a6 {[%emt 0:00:01]} Rb6 {[%emt 0:00:08]} 42. Qc4 {[%emt 0:00:04]} Qb2 {[%emt 0:00:08]} 43. Rf3 {[%emt 0:00:25]} Qd2 {[%emt 0:00:12]} 44. Rd3 {[%emt 0:00:05]} Qb2 {[%emt 0:00:04]} 45. Rc3 {[%emt 0:00:07]} Rbxa6 {[%emt 0:00:14]} 46. Rxa6 {[%emt 0:00:21]} Rxa6 {[%emt 0:00:02]} 47. Qxa6 {[%emt 0:00:04]} Qxc3 {[%emt 0:00:01]} 48. Qc8+ {[%emt 0:00:10]} Kg7 {[%emt 0:00:01]} 49. Qe8 {[%emt 0:00:01]} Qf6 {[%emt 0:00:04]} 50. f4 {[%emt 0:00:13]} Qb2+ {[%emt 0:00:06]} 51. Kh3 {[%emt 0:00:01]} Qf6 {[%emt 0:00:04]} 52. Qd8 {[%emt 0:00:08]} Qf8 {[%emt 0:00:09]} 53. Qc7 {[%emt 0:00:08]} 1/2-1/2